Cogmind - Beta 11.1 @@@ ROGUE MODE // 2022.05.14 @ 15:38:20 Player: aoemica Result: Escaped! Performance ------------- Evolutions (9) 4500 Regions Visited (27) 5400 Robots Destroyed (545) 2725 Value Destroyed (19954) 19954 Prototype IDs (83) 1660 Alien Tech Used (0) 0 Bonus (12272) 12272 TOTAL SCORE: 46511 Bonus ------- Triggered High Security 500 High Alert Combat Kills 4655 Follower Combat Kills 2178 Entered DSFs 500 Network Hubs Disabled 200 Aligned with FarCom 300 Met Data Miner 300 Met Zhirov 300 Met Warlord at Base 500 MAIN.C Attacked Warlord 500 Warlord Defense Kills 1164 Built Enhanced Grunts 300 Met R17 at Cetus 500 Read Decrypted Archives 300 Met Warlord at Research 2000 Win 3000 Friendly Fire -4925 Cogmind --------- Core Integrity 1410/1600 Matter 300/300 Energy 189/190 System Corruption 1% Temperature Cool (3) Movement Flying (34) Location To Epsilon Eridani Parts ------- > --- POWER (3) -------- Light Quantum Reactor > --- PROPULSION (13) -- Impulse Thruster Field Propulsion Array Field Propulsion Array > --- UTILITY (4) ------ Advanced Heat Sink Enhanced Optical Array Hacking Suite > --- WEAPON (5) ------- Phasing Sabre Molecular Scythe > --- INVENTORY (5) ---- Light Antimatter Reactor Advanced Energy Well (500) Advanced Transmission Jammer Vortex Cannon (26) Long-range Missile Launcher Peak State ------------ > --- POWER ------------ Quantum Reactor Quantum Reactor > --- PROPULSION ------- Armored Treads Armored Medium Treads Centrium Heavy Treads Centrium Heavy Treads > --- UTILITY ---------- Huge Storage Unit Improved Salvage Targeting Computer Improved Transmission Jammer Advanced Force Field > --- WEAPON ----------- Minigun KE Penetrator Advanced KE Penetrator Advanced KE Penetrator Advanced KE Penetrator > --- INVENTORY -------- Armored Treads Armored Treads Medium Treads Centrium Heavy Treads Improved Cooling System Improved Cooling System Improved Cooling System Advanced Energy Well Matter Compressor Long-range Terrain Scanner Medium Reactive Plating Graphene Brace Improved Shield Generator Bomb Drone Bay Long-range Proton Cannon Guided Plasma Cannon Gauss Rifle Precision Assault Rifle Heavy Machine Gun KE Penetrator Advanced KE Penetrator Long-range Missile Launcher Long-range Missile Launcher [Rating: 129] Favorites ----------- Power Cooled Ion Engine Engine Cooled Ion Engine Power Core Light Nuclear Core Reactor Quantum Reactor Propulsion Light Treads Treads Light Treads Leg Myomer Leg Wheel Armored Huge Wheel Flight Unit Field Propulsion Array Utility Huge Storage Unit Device Improved Cooling System Storage Huge Storage Unit Processor Improved Salvage Targeting Computer Hackware Hacking Suite Protection Hardened Light Armor Plating Weapon Enhanced Autogun Energy Gun EM Pulse Gun Energy Cannon Guided Plasma Cannon Ballistic Gun Enhanced Autogun Ballistic Cannon Heavy Gauss Cannon Launcher Grenade Launcher Special Weapon Remote Datajack Impact Weapon Makeshift Hammer Slashing Weapon Phasing Sabre Piercing Weapon Makeshift Spear Build | -11 -10 -10 -9 -9 -9 -8 -8 -7 -7 -7 -7 -6 -6 -6 -6 -6 -6 -5 -5 -5 -5 -4 -4 -3 -3 -2 -1 ------- Run | Scr Mat Min Mat Min Exi Min Mat Fac Low Low Dat Pro Fac Ext Cet Arc Hub Fac Upp Upp War Pro Fac Res DSF Res Acc Slots Evolved 18 | . . . 2 . . . 2 2 . . . . 2 . . . . 2 . . . . 2 2 . 2 2 Power 2 | . . . . . . . . . . . . . 1 . . . . . . . . . 1 . . . . Propulsion 11 | . . . . . . . 1 1 . . . . 1 . . . . 1 . . . . 1 2 . 2 2 Utility 2 | . . . 1 . . . 1 . . . . . . . . . . . . . . . . . . . . Weapon 3 | . . . 1 . . . . 1 . . . . . . . . . 1 . . . . . . . . . Parts Attached 518 | . 17 10 26 12 9 7 43 80 8 15 4 16 34 6 18 . 24 47 14 20 31 18 34 1 4 17 3 Power 29 | . 1 1 4 2 . . . 1 2 1 . 1 1 1 3 . . 3 . 1 1 . 3 . . 1 2 Engine 17 | . 1 1 4 2 . . . 1 1 1 . . . 1 1 . . 2 . 1 . . 1 . . . . Core 4 | . . . . . . . . . 1 . . . 1 . . . . . . . . . 2 . . . . Reactor 8 | . . . . . . . . . . . . 1 . . 2 . . 1 . . 1 . . . . 1 2 Propulsion 113 | . 4 2 8 2 . 1 9 22 3 6 . 1 7 2 4 . 4 4 1 2 7 7 9 1 3 4 . Treads 102 | . 4 2 8 2 . 1 9 20 3 6 . 1 6 2 4 . 4 4 1 2 7 7 8 . . 1 . Leg 5 | . . . . . . . . . . . . . . . . . . . . . . . 1 1 3 . . Wheel 3 | . . . . . . . . 2 . . . . 1 . . . . . . . . . . . . . . Hover . | . . . . . . . . . . . . . . . . . . . . . . . . . . . . Flight 3 | . . . . . . . . . . . . . . . . . . . . . . . . . . 3 . Utility 182 | . 2 2 8 3 4 2 25 21 1 1 . 12 14 1 4 . 10 20 6 9 10 6 16 . 1 4 . Device 140 | . 1 1 3 2 2 . 10 16 1 1 . 10 13 1 2 . 9 19 6 9 10 6 16 . 1 1 . Storage 9 | . 1 . 1 . 1 1 1 3 . . . 1 . . . . . . . . . . . . . . . Processor 9 | . . . . . . . 2 1 . . . 1 1 . 2 . . . . . . . . . . 2 . Hackware 3 | . . . . . . . 1 1 . . . . . . . . . . . . . . . . . 1 . Protection 21 | . . 1 4 1 1 1 11 . . . . . . . . . 1 1 . . . . . . . . . Artifact . | . . . . . . . . . . . . . . . . . . . . . . . . . . . . Weapon 194 | . 10 5 6 5 5 4 9 36 2 7 4 2 12 2 7 . 10 20 7 8 13 5 6 . . 8 1 Energy Gun 12 | . 7 2 . . . . . . . . . . . . . . . . . . 2 1 . . . . . Energy Cannon 7 | . . . . . 1 . . . . . . . 1 . . . . 2 . 1 1 . . . . . 1 Ballistic Gun 125 | . . 2 6 4 3 2 8 24 2 4 4 2 10 2 6 . 10 11 5 5 7 4 4 . . . . Ballistic Cannon 5 | . . . . . . . . . . . . . . . . . . . . 1 1 . 2 . . 1 . Launcher 33 | . 3 1 . 1 . 2 1 12 . . . . 1 . . . . 7 2 1 2 . . . . . . Special Weapon 2 | . . . . . 1 . . . . 1 . . . . . . . . . . . . . . . . . Impact Weapon 1 | . . . . . . . . . . 1 . . . . . . . . . . . . . . . . . Slashing Weapon 8 | . . . . . . . . . . . . . . . 1 . . . . . . . . . . 7 . Piercing Weapon 1 | . . . . . . . . . . 1 . . . . . . . . . . . . . . . . . Special Melee Weapon . | . . . . . . . . . . . . . . . . . . . . . . . . . . . . Unidentified Prototypes 16 | . . . . . 1 . 1 1 . . . 3 . . 3 . . . . . 6 . . . . 1 . Corrupted Parts 9 | . . . . . . . . . . . . . . . 1 . 4 . . . . 4 . . . . . System Corruption 37 | . . . . . . . . . . . . . . . 3 . 25 . . . . 9 . . . . . Parts Lost 45 | . . 6 2 . . . 1 1 2 . . 1 1 . 1 . . 2 . 2 4 4 15 . . 1 2 Power 7 | . . 1 1 . . . . . 1 . . . . . . . . 1 . . . . 2 . . . 1 Propulsion 11 | . . 2 . . . . . 1 1 . . . . . . . . . . . 1 2 4 . . . . Utility 12 | . . 1 1 . . . 1 . . . . . 1 . 1 . . . . . 1 1 3 . . 1 1 Weapon 15 | . . 2 . . . . . . . . . 1 . . . . . 1 . 2 2 1 6 . . . . Highest Loss Streak 12 | . . 6 1 . . . 1 1 1 . . 1 1 . 1 . . 2 . 1 4 4 12 . . 1 1 To Critical Strikes . | . . . . . . . . . . . . . . . . . . . . . . . . . . . . Average Slot Usage (%) 94 | . 92 98 99 99 70 100 99 99 99 99 71 100 92 93 93 86 85 86 87 87 90 93 88 45 54 46 42 Engine 6 | . 14 12 10 11 11 11 9 7 2 . 7 1 . 5 7 . . 4 11 11 5 . 4 . . . . Core 1 | . . . . . . . . . 4 6 . . 5 6 . . . . . . . . . . . . . Reactor 1 | . . . . . . . . . . . . 5 6 . 4 13 13 5 . . 2 5 4 . . . 6 Treads 25 | . 23 28 21 22 22 22 26 28 29 29 30 30 20 20 26 20 20 23 23 23 29 34 34 19 19 13 . Device 14 | . 7 9 10 10 10 11 12 13 23 23 23 23 19 20 14 13 12 10 11 11 10 10 10 19 19 12 7 Storage 7 | . 14 14 11 11 11 11 9 7 7 7 7 7 6 6 6 6 6 5 5 5 5 5 4 . . . . Processor 2 | . . . . . . . 3 6 . . . . . . 4 6 6 5 5 5 5 5 4 . . 3 4 Protection 3 | . . 4 10 11 10 11 8 1 . . . . . . . . . . . . . . . . . . . Energy Gun 1 | . 25 11 . . . . . . . . . . . . . . . . . . . 2 . . . . . Ballistic Gun 26 | . 2 13 32 32 . 32 26 29 30 29 2 30 25 26 25 26 25 27 28 27 27 26 23 . . . . Naked Turns . | . . . . . . . . . . . . . . . . . . . . . . . . . . . . Heaviest Build 166 | 11 31 33 64 68 69 69 127 115 108 109 109 120 136 129 141 141 149 166 153 154 162 151 155 3 3 22 37 Greatest Support 215 | 20 40 40 40 40 40 40 60 86 91 91 80 80 78 28 180 180 180 215 215 215 175 159 186 3 154 37 37 Greatest Overweight (x) 5 | . . . 1 1 1 1 2 4 5 1 1 1 4 4 4 . . 1 . 4 . 1 . . . 4 . Average Overweight (x) . | . . . . 1 1 1 . 1 1 1 1 1 3 4 . . . . . . . . . . . . . Largest Inventory Capacity 25 | . 15 15 20 20 20 20 25 25 25 25 25 25 25 25 25 25 25 25 25 25 25 25 25 5 5 5 5 Average Capacity 22 | . 13 15 18 20 20 20 22 25 25 25 25 25 25 25 25 25 25 25 25 25 25 25 23 5 5 5 5 Most Carried 25 | . 15 15 20 20 20 20 25 25 25 25 25 25 25 25 25 25 25 25 25 25 25 25 25 5 5 5 5 Average Carried 22 | . 12 14 17 19 18 20 22 24 24 24 25 24 24 24 24 25 24 24 24 24 24 23 22 5 5 4 4 Final Capacity 25 | 8 15 15 20 20 20 20 25 25 25 25 25 25 25 25 25 25 25 25 25 25 25 25 5 5 5 5 5 Final Carried 25 | 6 15 14 20 20 20 20 25 25 25 25 25 25 25 25 25 25 25 25 25 25 25 23 5 5 5 3 5 Class Distribution -------------------- 34% | Scavenger-Skirmisher 27% | Scavenger-Tank 11% | Mutant 10% | Tank 6% | Skirmisher 3% | Scavenger-Mutant 3% | Scavenger-Gunner Dominant Class ---------------- Mutant | -10/Materials Mutant | -10/Mines Tank | -9/Materials Scavenger-Tank | -9/Mines Mutant | -9/Exiles Scavenger-Skirmisher | -8/Mines Scavenger-Skirmisher | -8/Materials Scavenger-Skirmisher | -7/Factory Scavenger-Tank | -7/Lower Caves Scavenger-Tank | -7/Lower Caves Scavenger-Mutant | -7/Data Miner Scavenger-Tank | -6/Proximity Caves Scavenger-Skirmisher | -6/Factory Commander-Skirmisher | -6/Extension Commander-Skirmisher | -6/Cetus Scavenger-Skirmisher | -6/Archives Scavenger-Skirmisher | -6/Hub_04(d) Scavenger-Skirmisher | -5/Factory Scavenger-Tank | -5/Upper Caves Scavenger-Skirmisher | -5/Upper Caves Scavenger-Tank | -5/Warlord Scavenger-Gunner | -4/Proximity Caves Scavenger-Skirmisher | -4/Factory Mutant | -3/Research Mutant | -3/DSF Mutant | -2/Research Generator-Mutant | -1/Access Resources | -11 -10 -10 -9 -9 -9 -8 -8 -7 -7 -7 -7 -6 -6 -6 -6 -6 -6 -5 -5 -5 -5 -4 -4 -3 -3 -2 -1 ----------- Run | Scr Mat Min Mat Min Exi Min Mat Fac Low Low Dat Pro Fac Ext Cet Arc Hub Fac Upp Upp War Pro Fac Res DSF Res Acc Matter Collected 22860 | 184 241 229 1043 273 222 578 1898 3886 617 509 . 846 2260 619 688 . 985 2714 959 768 984 687 1358 . . 282 30 Remotely 645 | . . . . . . . . . . . . . . . . . . . . 47 337 . 261 . . . . Salvage Created 26130 | . 798 360 1724 131 . 537 2342 4623 533 425 . 722 1998 471 401 . 931 4310 998 1032 425 1238 1517 . . 246 368 Parts 1343 | . 53 14 129 12 . 37 111 237 31 30 . 31 91 23 19 . 44 203 56 53 13 63 78 . . 6 9 Haulers Intercepted 26 | . 2 . 5 . . . 4 6 . . . 1 2 . . . 1 4 . . . . . . . . 1 Recyclers Shooed 20 | . 4 . 1 1 . 1 3 1 . . . . 3 1 . . 1 2 . . . . 2 . . . . Parts Field Recycled . | . . . . . . . . . . . . . . . . . . . . . . . . . . . . Retrieved Matter . | . . . . . . . . . . . . . . . . . . . . . . . . . . . . Parts Self-Destructed 203 | . . . . . . . . . 18 17 . 32 . . . . . . 48 29 . 59 . . . . . Prevented 16 | . . . . . . . . . . 3 . . . . . . . . . 12 . 1 . . . . . Kills | -11 -10 -10 -9 -9 -9 -8 -8 -7 -7 -7 -7 -6 -6 -6 -6 -6 -6 -5 -5 -5 -5 -4 -4 -3 -3 -2 -1 ------- Run | Scr Mat Min Mat Min Exi Min Mat Fac Low Low Dat Pro Fac Ext Cet Arc Hub Fac Upp Upp War Pro Fac Res DSF Res Acc Combat Hostiles Destroyed 424 | . 14 13 34 7 . 16 37 77 12 5 . 12 20 4 5 . 11 61 17 19 10 26 21 . . 3 . Guns 339 | . 12 6 34 3 . 13 37 54 12 5 . 12 20 4 5 . 11 35 15 12 6 23 20 . . . . Cannons 7 | . . . . . . . . . . . . . . . . . . 2 . 1 . . 1 . . 3 . AOE 75 | . 2 6 . 4 . 3 . 23 . . . . . . . . . 24 2 4 4 3 . . . . . Classes Destroyed 28 | . 6 3 5 . . 2 1 3 1 . . 1 . . . . 1 2 1 . 2 . . . . . . Worker 24 | . 2 . 1 1 . 1 5 12 . . . . . . . . 1 . . . . . 1 . . . . Builder 14 | . . . 1 . . 1 1 3 . . . . 1 1 . . 1 3 . . . . 1 . . . 1 Tunneler 3 | . . . 1 . . 1 . . . . . . 1 . . . . . . . . . . . . . . Hauler 26 | . 2 . 5 . . . 4 6 . . . 1 2 . . . 1 4 . . . . . . . . 1 Recycler 40 | . 1 2 2 . . 2 7 11 . . . . 6 2 . . . 5 . . . . 1 . . . 1 Mechanic 4 | . . . 1 . . . . 2 . . . . . . . . . . . 1 . . . . . . . Operator 3 | . . . 1 . . . . 2 . . . . . . . . . . . . . . . . . . . Watcher 25 | . 3 . 3 . . . 4 5 . . . . 3 . . . . 2 . . . . 1 . . 1 3 Swarmer 111 | . 3 . 15 5 . 12 11 14 4 2 . 3 7 1 1 . . 7 2 6 4 11 3 . . . . Saboteur 2 | . . . . . . . . . . . . . . . . . . 2 . . . . . . . . . Grunt 161 | . 11 3 9 2 . 2 17 36 2 . . 5 1 . 1 . 6 35 7 6 3 3 9 . . 3 . Brawler 7 | . . . . . . 1 . 2 . . . 1 . . . . . . 1 . . 1 1 . . . . Duelist 14 | . . . . . . . . 4 1 . . . . . . . . 3 . 2 . 4 . . . . . Protector 2 | . . . . . . . . 1 . . . . . . . . . 1 . . . . . . . . . Sentry 40 | . . . 10 . . . 6 5 1 1 . . 4 3 . . . 4 2 2 . 1 1 . . . . Demolisher 2 | . . 2 . . . . . . . . . . . . . . . . . . . . . . . . . Specialist 7 | . . . . . . . 2 . . . . . . . . . 3 2 . . . . . . . . . Hunter 22 | . . . . . . 1 1 1 1 . . 2 2 . . . 1 3 2 3 1 4 . . . . . Programmer 36 | . . . . . . . . 14 . 1 . 1 6 . . . . 2 3 . . 2 7 . . . . Heavy 2 | . . . . . . . . . . . . . . . . . 1 1 . . . . . . . . . Behemoth 1 | . . . . . . . . . . . . . . . . . . 1 . . . . . . . . . Cetus Guard 3 | . . . . . . . . . . . . . . . 3 . . . . . . . . . . . . Enhanced Grunt 1 | . . . . . . . . . . . . . . . . . 1 . . . . . . . . . . Striker 1 | . . . . . . . . . . . . . . . . . . . . . 1 . . . . . . Executioner 1 | . . . . . . . . . . . . . . . . . . . . . 1 . . . . . . Zionite 1 | . . 1 . . . . . . . . . . . . . . . . . . . . . . . . . Samaritan 1 | . . . . . . . . . . . . . . . . . . . 1 . . . . . . . . Tinkerer 1 | . . . . . . . . . . . . 1 . . . . . . . . . . . . . . . Assembled 8 | . . 8 . . . . . . . . . . . . . . . . . . . . . . . . . Wasp 2 | . . . . . . . . . 2 . . . . . . . . . . . . . . . . . . Thug 4 | . . . . . . . . . 1 2 . . . . . . . . . . 1 . . . . . . Mutant 4 | . . . . . . . . . 1 2 . . . . . . . . . 1 . . . . . . . Best Kill Streak 14 | . 5 3 5 4 . 5 7 9 3 3 . 3 3 2 3 . 3 11 5 7 5 14 7 . . 3 2 Combat Bots Only 14 | . 5 3 5 4 . 4 6 8 3 3 . 3 3 1 3 . 2 10 5 6 5 14 7 . . 3 . Max Kills in Single Turn 6 | . 2 2 2 4 . 3 2 6 1 2 . 1 1 2 1 . 2 5 2 2 3 2 2 . . 2 1 Gunslinging 1 | . . . 1 . . 1 . 1 . 1 . . . . . . . 1 . . 1 1 1 . . . . Exploded 5 | . 1 2 . 4 . 3 . 5 . . . . . . . . . 4 1 1 3 2 . . . . . Melee . | . . . . . . . . . . . . . . . . . . . . . . . . . . . . Uniques/NPCs Destroyed 1 | . . . . . . . . . . . . . . . 1 . . . . . . . . . . . . A7 (-6/Cetus) Combat | -11 -10 -10 -9 -9 -9 -8 -8 -7 -7 -7 -7 -6 -6 -6 -6 -6 -6 -5 -5 -5 -5 -4 -4 -3 -3 -2 -1 -------- Run | Scr Mat Min Mat Min Exi Min Mat Fac Low Low Dat Pro Fac Ext Cet Arc Hub Fac Upp Upp War Pro Fac Res DSF Res Acc Damage Taken 21665 | . 390 795 1117 128 . 495 1336 1713 420 59 . 505 800 346 769 . 637 2409 915 992 1839 1140 3645 . 313 394 508 Core 1691 | . 45 172 172 22 . 6 140 126 . . . 24 62 22 62 . 12 81 39 72 119 31 217 . 28 49 190 Absorbed by Shields 5246 | . . . . . . . 162 549 66 . . 185 322 158 277 . 166 1321 662 268 856 254 . . . . . Reduced by Siege Mode 344 | . . . . . . . . . . . . . . . . . 52 81 38 51 . . 122 . . . . Regen/Repaired (Parts) 962 | . 84 . 318 . . . 227 333 . . . . . . . . . . . . . . . . . . . Core Remaining (%) 74 | 100 . 13 . . . 50 74 . . . . 78 . . . . 81 . . . . 65 81 . 97 96 88 Volleys Fired 1160 | . 54 31 87 8 5 39 129 171 20 16 . 32 99 32 33 1 57 134 53 45 31 26 52 . . 5 . Largest 5 | . 2 2 3 3 1 3 3 4 4 4 . 4 4 4 4 4 4 5 5 5 5 5 5 . . 1 . Hottest 193 | . 80 80 69 69 5 69 75 103 106 106 . 106 120 108 108 106 121 168 161 157 161 178 193 . . 61 . Shots Fired 3894 | . 101 48 260 25 5 114 385 639 82 53 . 128 369 122 119 4 176 436 168 130 145 129 251 . . 5 . Gun 3754 | . 96 38 260 24 . 111 384 618 82 52 . 128 367 122 119 4 176 399 161 105 141 129 238 . . . . Cannon 54 | . . . . . . . . . . . . . 1 . . . . 16 . 19 . . 13 . . 5 . Launcher 80 | . 5 10 . 1 . 3 1 21 . . . . 1 . . . . 21 7 6 4 . . . . . . Special 6 | . . . . . 5 . . . . 1 . . . . . . . . . . . . . . . . . Kinetic 3653 | . 22 12 260 24 . 111 384 618 82 52 . 128 367 122 119 4 176 399 161 105 141 110 251 . . 5 . Thermal 63 | . 46 . . . . . . . . . . . 1 . . . . 16 . . . . . . . . . Explosive 80 | . 5 10 . 1 . 3 1 21 . . . . 1 . . . . 21 7 6 4 . . . . . . Electromagnetic 73 | . 28 26 . . . . . . . . . . . . . . . . . 19 . . . . . . . Entropic 19 | . . . . . . . . . . . . . . . . . . . . . . 19 . . . . . Robot Hit Streak 39 | . 16 10 28 4 7 10 14 17 15 9 . 9 12 12 7 3 17 20 15 17 7 8 39 . . 24 . Robot Miss Streak 10 | . 3 3 4 4 1 6 10 3 3 3 . 4 7 3 4 1 5 5 4 2 3 6 4 . . . . Penetration Max 2 | . . . . . . . . . . . . . . . . . 1 1 1 . 2 2 1 . . 1 . Secondary Targets 67 | . . 1 5 . . 3 7 5 1 1 . 4 . 1 1 . 1 12 4 . 2 11 8 . . . . Max Gunslinging Chain 2 | . . 1 1 . . 2 1 1 1 1 . 1 . 1 1 . 1 2 1 . 1 1 1 . . . . Shots Hit Robots 2373 | . 62 26 153 10 4 64 225 390 48 22 . 88 216 85 88 3 104 236 99 77 93 72 188 . . 8 12 Core Hits 1158 | . 35 29 64 9 . 29 90 204 39 20 . 54 81 27 37 3 35 159 41 38 44 48 61 . . 6 5 Critical Kills 22 | . . . 1 . . 1 . 1 1 . . 2 . . . . 2 5 5 2 1 1 . . . . . Critical Parts Destroyed 40 | . . . . . . 1 . 1 . . . . 1 1 . . 6 17 4 1 . 3 5 . . . . Critical Strikes 71 | . . . 1 . . 2 . 2 1 . . 2 1 1 . . 8 23 9 3 6 4 5 . . 2 1 Destroy 66 | . . . 1 . . 2 . 2 1 . . 2 1 1 . . 8 23 9 3 6 2 5 . . . . Blast 1 | . . . . . . . . . . . . . . . . . . . . . . . . . . 1 . Sever 2 | . . . . . . . . . . . . . . . . . . . . . . . . . . 1 1 Detonate 2 | . . . . . . . . . . . . . . . . . . . . . . 2 . . . . . Melee Attacks 45 | . . . . . . . . . . . . . . . 12 . . . . . . . . . . 11 22 Impact . | . . . . . . . . . . . . . . . . . . . . . . . . . . . . Slashing 45 | . . . . . . . . . . . . . . . 12 . . . . . . . . . . 11 22 Piercing . | . . . . . . . . . . . . . . . . . . . . . . . . . . . . Sneak Attacks 17 | . . . . . . . . . . . . . . . 12 . . . . . . . . . . 1 4 Combat Hostiles . | . . . . . . . . . . . . . . . . . . . . . . . . . . . . Follow-up Attacks 2 | . . . . . . . . . . . . . . . . . . . . . . . . . . 1 1 Damage Inflicted 63191 | . 994 784 2609 427 . 1094 3960 11288 887 516 . 1452 3773 1437 2381 69 2457 11141 2853 2884 3463 2812 4566 . . 410 934 Guns 46301 | . 798 359 2473 161 . 910 3902 7050 851 414 . 1431 3773 1437 1788 69 2415 6073 2117 1240 2715 2174 4151 . . . . Cannons 1596 | . . . . . . . . . . . . . . . . . . 502 . 558 . . 362 . . 174 . Explosions 12497 | . 105 405 . 247 . 156 . 4004 . . . . . . . . . 4451 736 1007 748 638 . . . . . Melee 1761 | . . . . . . . . . . . . . . . 593 . . . . . . . . . . 234 934 Ramming 1036 | . 91 20 136 19 . 28 58 234 36 102 . 21 . . . . 42 115 . 79 . . 53 . . 2 . Kinetic 45350 | . 228 108 2473 161 . 910 3902 7050 851 414 . 1431 3773 1437 1788 69 2415 6073 2117 1240 2715 1508 4513 . . 174 . Thermal 1887 | . 397 . . . . . . 115 . . . . . . . . . 737 . . . 638 . . . . . Explosive 11424 | . 20 405 . 247 . 156 . 3889 . . . . . . . . . 4216 736 1007 748 . . . . . . Electromagnetic 1067 | . 258 251 . . . . . . . . . . . . . . . . . 558 . . . . . . . Impact . | . . . . . . . . . . . . . . . . . . . . . . . . . . . . Slashing 1761 | . . . . . . . . . . . . . . . 593 . . . . . . . . . . 234 934 Piercing . | . . . . . . . . . . . . . . . . . . . . . . . . . . . . Entropic 666 | . . . . . . . . . . . . . . . . . . . . . . 666 . . . . . Highest Corruption 34 | . . . 4 4 4 4 . 7 7 7 7 7 6 6 9 9 34 2 2 2 2 10 12 . . . 1 Average Corruption 4 | . . . 3 4 4 4 . 3 7 7 7 7 4 6 6 9 10 1 2 2 1 5 6 . . . 1 Corruption Purged . | . . . . . . . . . . . . . . . . . . . . . . . . . . . . Corruption Blocked 15 | . . . . . . . . . . . . . . . . . . . . . . . . . . 15 . Effects 702 | . . . 28 50 30 51 . 65 79 99 4 45 11 36 19 3 37 25 26 29 4 25 36 . . . . Message Errors 173 | . . . 3 18 7 6 . 19 20 24 2 11 4 13 7 1 9 2 3 8 2 5 9 . . . . Matter Fused 170 | . . . 6 11 6 14 . 15 22 20 . 14 1 8 4 1 12 7 5 8 2 6 8 . . . . Heat Flow Errors 84 | . . . 4 6 3 8 . 11 9 16 1 3 3 3 1 . 2 4 5 2 . 1 2 . . . . Energy Discharges 85 | . . . 3 4 6 6 . 6 10 8 . 8 . 4 2 1 5 6 5 2 . 4 5 . . . . Parts Rejected 4 | . . . 1 . . . . 1 . . . 1 . . . . . 1 . . . . . . . . . Data Loss (minor) 97 | . . . 8 7 7 6 . 5 9 17 1 2 1 4 3 . 3 2 5 8 . 5 4 . . . . Data Loss (major) 33 | . . . 2 1 1 4 . 2 5 9 . . . 3 1 . 2 . . . . 1 2 . . . . Misfires 27 | . . . . 3 . 5 . 2 2 4 . 4 1 . . . 1 1 1 . . 2 1 . . . . Alerts 16 | . . . . . . 2 . . 2 1 . 2 . 1 . . 1 1 2 1 . 1 2 . . . . Weapon Failures 13 | . . . 1 . . . . 4 . . . . 1 . 1 . 2 1 . . . . 3 . . . . Overload Shots . | . . . . . . . . . . . . . . . . . . . . . . . . . . . . Overflow Damage 808 | . . . . . . . . 176 . . . . . . 40 . . 211 79 17 . 65 47 . . . 173 Projectiles 60 | . . . . . . . . . . . . . . . . . . 7 . 6 . . 47 . . . . Explosions 517 | . . . . . . . . 176 . . . . . . . . . 186 79 11 . 65 . . . . . Melee 231 | . . . . . . . . . . . . . . . 40 . . 18 . . . . . . . . 173 Knockbacks 14 | . . 1 . 1 . . . 2 . . . . . . . . . 1 . . . . 9 . . . . Impact 6 | . . 1 . 1 . . . 2 . . . . . . . . . 1 . . . . 1 . . . . Kinetic 8 | . . . . . . . . . . . . . . . . . . . . . . . 8 . . . . Secondary . | . . . . . . . . . . . . . . . . . . . . . . . . . . . . Self-Inflicted Damage 294 | . . 64 . . . . . . . . . . . . . . . 143 . . . 87 . . . . . Shots 9 | . . 3 . . . . . . . . . . . . . . . 5 . . . 1 . . . . . Rammed 174 | . 3 3 23 5 . 5 6 15 20 53 . 4 . . . . 2 5 . 25 . . 1 . . 4 . Targets Rammed 220 | . 36 4 24 6 . 6 8 19 20 53 . 6 . . . . 2 5 . 25 . . 2 . . 4 . Kicked 33 | . 33 . . . . . . . . . . . . . . . . . . . . . . . . . . Crushed 13 | . . 1 1 1 . 1 2 4 . . . 2 . . . . . . . . . . 1 . . . . Highest Temperature 355 | . 153 144 214 265 247 266 18 227 276 235 107 174 238 275 271 . 156 326 280 242 3 210 355 . . . . Average Temperature 66 | . 44 43 46 109 119 105 7 33 98 93 54 16 104 97 31 . 52 82 110 77 2 22 77 . . . . Received Heat Transfer 3954 | . 231 36 318 69 . 45 437 442 40 9 . 76 42 57 93 . 153 466 162 128 146 57 920 . . 18 9 Effects 7 | . . . . . . 2 . . . . . . . 3 . . . . 1 1 . . . . . . . Energy Bleed 2 | . . . . . . . . . . . . . . . . . . . 1 1 . . . . . . . Interference 5 | . . . . . . 2 . . . . . . . 3 . . . . . . . . . . . . . Siege Activations 14 | . . . . . . . . . . . . . . . . . 2 4 2 4 1 . 1 . . . . Total Turns 267 | . . . . . . . . . . . . . . . . . 32 85 46 45 18 . 41 . . . . Longest Duration 41 | . . . . . . . . . . . . . . . . . 19 26 25 22 18 . 41 . . . . Robots Corrupted 3 | . . 1 . . . . . . . . . . . . . . . . . 2 . . . . . . . Combat Hostiles 3 | . . 1 . . . . . . . . . . . . . . . . . 2 . . . . . . . Parts Fried 9 | . 1 1 . . . . . . . . . . . . 1 . . . . 5 1 . . . . . . Impact Corruptions 1 | . . . . . . . . . . . . . . . . . . 1 . . . . . . . . . Robots Melted . | . . . . . . . . . . . . . . . . . . . . . . . . . . . . Combat Hostiles . | . . . . . . . . . . . . . . . . . . . . . . . . . . . . Parts Melted 2 | . 2 . . . . . . . . . . . . . . . . . . . . . . . . . . Heat Transferred 2690 | . 900 . . . . . . 100 . . . . . . . . . 1190 . . . 500 . . . . . Parts Sabotaged . | . . . . . . . . . . . . . . . . . . . . . . . . . . . . Parts Stolen . | . . . . . . . . . . . . . . . . . . . . . . . . . . . . Parts Stripped . | . . . . . . . . . . . . . . . . . . . . . . . . . . . . Power Chain Reactions 2 | . 2 . . . . . . . . . . . . . . . . . . . . . . . . . . Missiles Intercepted . | . . . . . . . . . . . . . . . . . . . . . . . . . . . . Alert | -11 -10 -10 -9 -9 -9 -8 -8 -7 -7 -7 -7 -6 -6 -6 -6 -6 -6 -5 -5 -5 -5 -4 -4 -3 -3 -2 -1 ------- Run | Scr Mat Min Mat Min Exi Min Mat Fac Low Low Dat Pro Fac Ext Cet Arc Hub Fac Upp Upp War Pro Fac Res DSF Res Acc Peak Influence 2334 | . 387 298 535 184 . 194 418 2334 . . . . 252 350 616 502 1271 2208 . . . . 320 168 126 638 470 Initial 548 | . . 68 . 179 . . 11 163 . . . . 2 122 169 245 175 548 . . . . 45 168 126 70 286 Average 390 | . 203 98 307 55 . 33 253 753 . . . . 76 164 441 333 1060 1120 . . . . 158 168 126 403 326 Maximum Alert Level 5 | . 1 1 2 . . . 2 5 . . . . 1 1 2 2 4 5 . . . . 1 . . 2 2 Low Security (%) 40 | . 33 84 7 100 . 100 18 20 . . . . 90 76 7 . . . . . . . 51 100 100 8 . Level 1 35 | . 66 15 81 . . . 75 29 . . . . 9 23 23 69 2 . . . . . 48 . . 34 75 Level 2 8 | . . . 11 . . . 6 10 . . . . . . 69 30 4 21 . . . . . . . 57 24 Level 3 5 | . . . . . . . . 11 . . . . . . . . 32 33 . . . . . . . . . Level 4 5 | . . . . . . . . 8 . . . . . . . . 59 28 . . . . . . . . . Level 5 4 | . . . . . . . . 19 . . . . . . . . . 5 . . . . . . . . . High Security . | . . . . . . . . . . . . . . . . . . 11 . . . . . . . . . Max Security . | . . . . . . . . . . . . . . . . . . . . . . . . . . . . Squads Dispatched 96 | . 3 . 3 1 . 1 6 31 . . . . 7 1 . . 9 24 . 1 . 1 4 1 1 1 1 Investigation 17 | . 3 . 3 1 . . 2 3 . . . . . . . . 2 1 . . . . 1 . . 1 . Extermination 22 | . . . . . . . . 12 . . . . 5 . . . . 1 . . . . 3 . . . 1 Reinforcement 26 | . . . . . . 1 4 5 . . . . 2 1 . . 5 6 . . . . . 1 1 . . Assault 21 | . . . . . . . . 5 . . . . . . . . 1 13 . 1 . 1 . . . . . Garrison 10 | . . . . . . . . 6 . . . . . . . . 1 3 . . . . . . . . . Intercept . | . . . . . . . . . . . . . . . . . . . . . . . . . . . . Searches Triggered 1 | . . . . . . . . . . . . . . . . . . . . . . . . . . . 1 Data Miner Redirects 7 | . . . . . . . . . . . . . . . . . . 6 . . . . 1 . . . . Construction Impeded 4 | . . . . . . 1 . 2 . . . . . . . . . 1 . . . . . . . . . Haulers Reinforced 8 | . . . . . . . . 1 . . . . 1 . . . 2 4 . . . . . . . . . Active Scanning Responses . | . . . . . . . . . . . . . . . . . . . . . . . . . . . . Cargo Convoy Interrupts . | . . . . . . . . . . . . . . . . . . . . . . . . . . . . Stealth | -11 -10 -10 -9 -9 -9 -8 -8 -7 -7 -7 -7 -6 -6 -6 -6 -6 -6 -5 -5 -5 -5 -4 -4 -3 -3 -2 -1 --------- Run | Scr Mat Min Mat Min Exi Min Mat Fac Low Low Dat Pro Fac Ext Cet Arc Hub Fac Upp Upp War Pro Fac Res DSF Res Acc Distress Signals 27 | . 1 . 2 . . . 4 2 . . . . 1 2 3 . 1 3 . . 1 . 1 . . 3 3 Communications Jammed 56 | . . . 1 . . . . . . . . . 18 19 . . 3 5 . . . 2 3 . . . 5 Distress Signals 49 | . . . 1 . . . . . . . . . 18 19 . . . 1 . . . 2 3 . . . 5 Times Spotted 723 | . 22 12 50 10 . 17 59 101 14 5 . 13 30 21 20 3 20 92 16 21 91 27 29 . 4 26 20 Peak Tracking Total 17 | . 6 3 5 4 . 4 8 9 4 3 . 4 3 3 5 7 4 17 3 4 15 7 8 . 4 9 9 Tactical Retreats 30 | . 1 . 1 . . 2 3 2 1 . . . . . 2 . . 4 . . 1 1 3 . . 6 3 Traps | -11 -10 -10 -9 -9 -9 -8 -8 -7 -7 -7 -7 -6 -6 -6 -6 -6 -6 -5 -5 -5 -5 -4 -4 -3 -3 -2 -1 ------- Run | Scr Mat Min Mat Min Exi Min Mat Fac Low Low Dat Pro Fac Ext Cet Arc Hub Fac Upp Upp War Pro Fac Res DSF Res Acc Traps Triggered 16 | . 2 . 4 . . . 2 5 . . . . . . . . . 2 . . . . 1 . . . . Indirectly . | . . . . . . . . . . . . . . . . . . . . . . . . . . . . Trap Hack Attempts . | . . . . . . . . . . . . . . . . . . . . . . . . . . . . Triggered . | . . . . . . . . . . . . . . . . . . . . . . . . . . . . Disarmed . | . . . . . . . . . . . . . . . . . . . . . . . . . . . . Reprogrammed . | . . . . . . . . . . . . . . . . . . . . . . . . . . . . Reused . | . . . . . . . . . . . . . . . . . . . . . . . . . . . . Traps Extracted . | . . . . . . . . . . . . . . . . . . . . . . . . . . . . Installed . | . . . . . . . . . . . . . . . . . . . . . . . . . . . . Triggered 24 | . . . . . . . . . . 2 . . . 2 . . . . . . 20 . . . . . . Machines | -11 -10 -10 -9 -9 -9 -8 -8 -7 -7 -7 -7 -6 -6 -6 -6 -6 -6 -5 -5 -5 -5 -4 -4 -3 -3 -2 -1 ---------- Run | Scr Mat Min Mat Min Exi Min Mat Fac Low Low Dat Pro Fac Ext Cet Arc Hub Fac Upp Upp War Pro Fac Res DSF Res Acc Machines Disabled 59 | . 2 . 2 . . 1 3 17 . . . . . 2 2 1 7 13 3 . . 1 5 . . . . Max in Single Turn 7 | . 1 . 1 . . 1 1 7 . . . . . . 1 . 2 5 2 . . 1 1 . . . . Garrison Access 4 | . . . . . . . . 1 . . . . . . . . 1 1 . . . . . . . 1 . Network Hub 1 | . . . . . . . . . . . . . . . . . 1 . . . . . . . . . . Machines Sabotaged 1 | . . . . . . . . . . . . . . . . . 1 . . . . . . . . . . Garrisons Compromised . | . . . . . . . . . . . . . . . . . . . . . . . . . . . . Overloaded Fab Kills . | . . . . . . . . . . . . . . . . . . . . . . . . . . . . Hacking | -11 -10 -10 -9 -9 -9 -8 -8 -7 -7 -7 -7 -6 -6 -6 -6 -6 -6 -5 -5 -5 -5 -4 -4 -3 -3 -2 -1 --------- Run | Scr Mat Min Mat Min Exi Min Mat Fac Low Low Dat Pro Fac Ext Cet Arc Hub Fac Upp Upp War Pro Fac Res DSF Res Acc Machines Accessed 113 | . 9 1 15 2 1 . 12 16 . 3 3 . 10 10 1 1 4 8 . 1 4 . 3 2 . 2 5 Terminals 67 | . 6 . 11 . . . 10 9 . . . . 5 9 1 . 3 5 . . . . 2 1 . 1 4 Fabricators 6 | . . . . . . . . 2 . . . . 2 . . . . 1 . . . . 1 . . . . Repair Stations 8 | . 1 . 2 . . . 1 3 . . . . . . . . . 1 . . . . . . . . . Recycling Units 7 | . 2 . 2 . . . 1 . . . . . 1 1 . . . . . . . . . . . . . Scanalyzers 1 | . . . . . . . . . . . . . 1 . . . . . . . . . . . . . . Garrison Access 8 | . . . . . . . . 2 . . . . 1 . . . 1 1 . . . . . 1 . 1 1 Total Hacks 328 | . 25 1 42 2 1 . 39 38 . 7 29 . 21 17 2 25 4 32 . 1 9 . 9 2 . 4 18 Successful 197 | . 12 1 26 2 1 . 17 20 . 7 29 . 10 5 . 25 2 13 . 1 9 . 6 1 . 2 8 Failed 129 | . 12 . 15 . . . 22 18 . . . . 11 12 2 . 2 19 . . . . 3 1 . 2 10 Catastrophic 31 | . . . 1 . . . 4 8 . . . . 2 4 1 . 2 3 . . . . 1 1 . . 4 Database Lockouts 2 | . 1 . 1 . . . . . . . . . . . . . . . . . . . . . . . . Manual 115 | . 11 . 26 . 1 . 16 9 . . . . 9 12 1 . 3 13 . . 2 . 6 . . 1 5 Terminals 178 | . 21 . 30 . . . 31 18 . . . . 10 16 2 . 3 21 . . . . 6 1 . 3 16 Fabricators 16 | . . . . . . . . 4 . . . . 4 . . . . 5 . . . . 3 . . . . Repair Stations 34 | . 2 . 10 . . . 6 13 . . . . . . . . . 3 . . . . . . . . . Recycling Units 11 | . 2 . 2 . . . 2 . . . . . 4 1 . . . . . . . . . . . . . Scanalyzers 2 | . . . . . . . . . . . . . 2 . . . . . . . . . . . . . . Garrison Access 12 | . . . . . . . . 3 . . . . 1 . . . 1 3 . . . . . 1 . 1 2 Terminal Hacks 124 | . 5 1 13 2 1 . 7 4 . 7 29 . 2 4 . 25 . 6 . 1 9 . 1 1 . 1 5 Record 39 | . . . . . . . . . . 5 6 . . . . 25 . . . . 3 . . . . . . Part Schematic 15 | . . . 2 . . . . . . . 13 . . . . . . . . . . . . . . . . Robot Schematic 7 | . . . . . . . . . . . 7 . . . . . . . . . . . . . . . . Robot Analysis 3 | . 1 . 2 . . . . . . . . . . . . . . . . . . . . . . . . Prototype ID Bank 18 | . 2 . 3 . . . 2 . . . 3 . 1 1 . . . 1 . . 5 . . . . . . Open Door 8 | . . 1 . 2 . . . . . 2 . . . . . . . . . 1 1 . . . . . 1 Open DSF 2 | . . . . . . . . . . . . . . . . . . . . . . . . 1 . 1 . Level Access Points 2 | . . . . . . . . . . . . . . . . . . 1 . . . . . . . . 1 Branch Access Points 3 | . . . . . . . . 1 . . . . 1 . . . . 1 . . . . . . . . . Emergency Access Points 3 | . 1 . 2 . . . . . . . . . . . . . . . . . . . . . . . . Alert Level 6 | . . . 1 . . . 2 1 . . . . . . . . . 1 . . . . . . . . 1 Unreport Threat 7 | . . . 1 . . . 2 . . . . . . 2 . . . 1 . . . . . . . . 1 Locate Traps 2 | . 1 . 1 . . . . . . . . . . . . . . . . . . . . . . . . Maintenance Status 1 | . . . . . . . . . . . . . . . . . . . . . . . . . . . 1 Patrol Status 1 | . . . 1 . . . . . . . . . . . . . . . . . . . . . . . . Hauler Manifests 2 | . . . . . . . 1 1 . . . . . . . . . . . . . . . . . . . Zone Layout 4 | . . . . . . . . 1 . . . . . 1 . . . 1 . . . . 1 . . . . EX-Prototype ID Bank 1 | . . . . . 1 . . . . . . . . . . . . . . . . . . . . . . Fabricator Hacks 6 | . . . . . . . . 1 . . . . 1 . . . . 2 . . . . 2 . . . . Network Status 3 | . . . . . . . . 1 . . . . 1 . . . . . . . . . 1 . . . . Load Schematic 2 | . . . . . . . . . . . . . . . . . . 1 . . . . 1 . . . . Build 1 | . . . . . . . . . . . . . . . . . . 1 . . . . . . . . . Repair Station Hacks 26 | . 2 . 8 . . . 5 10 . . . . . . . . . 1 . . . . . . . . . Scan Component 14 | . 1 . 4 . . . 3 5 . . . . . . . . . 1 . . . . . . . . . Repair 12 | . 1 . 4 . . . 2 5 . . . . . . . . . . . . . . . . . . . Recycling Unit Hacks 2 | . . . . . . . . . . . . . 2 . . . . . . . . . . . . . . Retrieve Components 2 | . . . . . . . . . . . . . 2 . . . . . . . . . . . . . . Scanalyzer 2 | . . . . . . . . . . . . . 2 . . . . . . . . . . . . . . Insert Component 1 | . . . . . . . . . . . . . 1 . . . . . . . . . . . . . . Analyze 1 | . . . . . . . . . . . . . 1 . . . . . . . . . . . . . . Garrison Access Hacks 2 | . . . . . . . . 1 . . . . . . . . . 1 . . . . . . . . . Seal Access 2 | . . . . . . . . 1 . . . . . . . . . 1 . . . . . . . . . Unauthorized Hacks 35 | . 5 . 5 . . . 5 4 . . . . 3 1 . . 2 3 . . . . 3 . . 1 3 Terminals 21 | . 3 . 3 . . . 4 1 . . . . 1 1 . . 1 2 . . . . 2 . . . 3 Assimilate 3 | . 1 . . . . . 1 . . . . . . . . . . 1 . . . . . . . . . Botnet 13 | . 1 . 2 . . . 2 1 . . . . 1 1 . . . 1 . . . . 2 . . . 2 Operators 4 | . 1 . 1 . . . 1 . . . . . . . . . . . . . . . . . . . 1 Sabotage 1 | . . . . . . . . . . . . . . . . . 1 . . . . . . . . . . Fabricators 4 | . . . . . . . . 2 . . . . . . . . . 1 . . . . 1 . . . . Prioritize 1 | . . . . . . . . . . . . . . . . . . 1 . . . . . . . . . Liberate 1 | . . . . . . . . 1 . . . . . . . . . . . . . . . . . . . Haulers 1 | . . . . . . . . 1 . . . . . . . . . . . . . . . . . . . Recompile 1 | . . . . . . . . . . . . . . . . . . . . . . . 1 . . . . Repair Stations 1 | . . . . . . . . 1 . . . . . . . . . . . . . . . . . . . Mechanics 1 | . . . . . . . . 1 . . . . . . . . . . . . . . . . . . . Recycling Units 7 | . 2 . 2 . . . 1 . . . . . 2 . . . . . . . . . . . . . . Reject 1 | . . . . . . . . . . . . . 1 . . . . . . . . . . . . . . Recyclers 1 | . . . . . . . . . . . . . 1 . . . . . . . . . . . . . . Tunnel 5 | . 2 . 2 . . . 1 . . . . . . . . . . . . . . . . . . . . Scanalyzers . | . . . . . . . . . . . . . . . . . . . . . . . . . . . . Garrison Access 2 | . . . . . . . . . . . . . . . . . 1 . . . . . . . . 1 . Jam 2 | . . . . . . . . . . . . . . . . . 1 . . . . . . . . 1 . Data Cores Recovered 2 | . . . . . . . . 2 . . . . . . . . . . . . . . . . . . . Used . | . . . . . . . . . . . . . . . . . . . . . . . . . . . . Hacking Detections 82 | . 7 . 12 . . . 12 13 . . . . 9 10 2 . 2 7 . . . . 2 1 . . 5 Full Trace Events 4 | . . . . . . . 1 2 . . . . . . . . . 1 . . . . . . . . . Feedback Events . | . . . . . . . . . . . . . . . . . . . . . . . . . . . . Feedback Blocked . | . . . . . . . . . . . . . . . . . . . . . . . . . . . . Robot Schematics Acquired 7 | . . . . . . . . . . . 7 . . . . . . . . . . . . . . . . Robots Built . | . . . . . . . . . . . . . . . . . . . . . . . . . . . . Authchips . | . . . . . . . . . . . . . . . . . . . . . . . . . . . . Time . | . . . . . . . . . . . . . . . . . . . . . . . . . . . . Total Robot Build Rating . | . . . . . . . . . . . . . . . . . . . . . . . . . . . . Part Schematics Acquired 16 | . . . 2 . . . . . . . 13 . 1 . . . . . . . . . . . . . . Parts Built 2 | . . . . . . . . . . . . . . . . . . 2 . . . . . . . . . Authchips . | . . . . . . . . . . . . . . . . . . . . . . . . . . . . Time 58 | . . . . . . . . . . . . . . . . . . 58 . . . . . . . . . Total Part Build Rating 14 | . . . . . . . . . . . . . . . . . . 14 . . . . . . . . . Parts Repaired 12 | . 1 . 4 . . . 2 5 . . . . . . . . . . . . . . . . . . . Time 410 | . 26 . 122 . . . 52 210 . . . . . . . . . . . . . . . . . . . Parts Recycled . | . . . . . . . . . . . . . . . . . . . . . . . . . . . . Recycled Matter . | . . . . . . . . . . . . . . . . . . . . . . . . . . . . Retrieved Matter . | . . . . . . . . . . . . . . . . . . . . . . . . . . . . Retrieved Components 9 | . . . . . . . . . . . . . 9 . . . . . . . . . . . . . . Parts Scanalyzed 1 | . . . . . . . . . . . . . 1 . . . . . . . . . . . . . . Part Schematics Acquired 1 | . . . . . . . . . . . . . 1 . . . . . . . . . . . . . . Parts Damaged . | . . . . . . . . . . . . . . . . . . . . . . . . . . . . Bothacking | -11 -10 -10 -9 -9 -9 -8 -8 -7 -7 -7 -7 -6 -6 -6 -6 -6 -6 -5 -5 -5 -5 -4 -4 -3 -3 -2 -1 ------------ Run | Scr Mat Min Mat Min Exi Min Mat Fac Low Low Dat Pro Fac Ext Cet Arc Hub Fac Upp Upp War Pro Fac Res DSF Res Acc Used RIF Installer . | . . . . . . . . . . . . . . . . . . . . . . . . . . . . Robots Hacked 5 | . . . . . 4 . . . . 1 . . . . . . . . . . . . . . . . . Non-combat 3 | . . . . . 3 . . . . . . . . . . . . . . . . . . . . . . Combat 2 | . . . . . 1 . . . . 1 . . . . . . . . . . . . . . . . . Robot Hacks Applied 5 | . . . . . 4 . . . . 1 . . . . . . . . . . . . . . . . . parse_system 5 | . . . . . 4 . . . . 1 . . . . . . . . . . . . . . . . . Relay Couplers Released 8 | . . . . . . . . 4 . . . . . . . . . . . . . . 4 . . . . Programmers 8 | . . . . . . . . 4 . . . . . . . . . . . . . . 4 . . . . Fabnet Peak Effective % . | . . . . . . . . . . . . . . . . . . . . . . . . . . . . Robots Rewired 12 | . . . . . . . . . . . . . . 11 . . . . . . . 1 . . . . . Allies Hacked . | . . . . . . . . . . . . . . . . . . . . . . . . . . . . Hacks Repelled . | . . . . . . . . . . . . . . . . . . . . . . . . . . . . Allies | -11 -10 -10 -9 -9 -9 -8 -8 -7 -7 -7 -7 -6 -6 -6 -6 -6 -6 -5 -5 -5 -5 -4 -4 -3 -3 -2 -1 -------- Run | Scr Mat Min Mat Min Exi Min Mat Fac Low Low Dat Pro Fac Ext Cet Arc Hub Fac Upp Upp War Pro Fac Res DSF Res Acc Total Allies 37 | . 1 2 . . . . . 4 . 2 . 1 . 20 5 . . 1 . . . 1 . . . . . Largest Group 15 | . 1 2 . . . . . 2 . 2 . 1 . 15 15 4 4 1 . . . 1 . . . . . Highest-Rated Group 774 | . 10 50 . . . . . 42 . 62 . 96 . 542 774 384 384 10 . . . 30 . . . . . Highest-Rated Ally 159 | . 10 31 . . . . . 31 . 31 . 96 . 159 159 96 96 10 . . . 30 . . . . . Total Orders 15 | . . . . . . . . . . . . . . . 9 . . 6 . . . . . . . . . STAY 9 | . . . . . . . . . . . . . . . 6 . . 3 . . . . . . . . . FOLLOW 5 | . . . . . . . . . . . . . . . 3 . . 2 . . . . . . . . . RETURN 1 | . . . . . . . . . . . . . . . . . . 1 . . . . . . . . . Ally Attacks 292 | . . 2 . . . . . 17 . 8 . 5 . 91 80 22 59 7 . . . 1 . . . . . Total Damage 7941 | . . 20 . . . . . 351 . 110 . 190 . 2316 2191 832 1907 . . . . 24 . . . . . Kills 62 | . . . . . . . . 4 . 1 . 2 . 18 16 6 15 . . . . . . . . . . Allies Corrupted . | . . . . . . . . . . . . . . . . . . . . . . . . . . . . Allies Melted . | . . . . . . . . . . . . . . . . . . . . . . . . . . . . Intel | -11 -10 -10 -9 -9 -9 -8 -8 -7 -7 -7 -7 -6 -6 -6 -6 -6 -6 -5 -5 -5 -5 -4 -4 -3 -3 -2 -1 ------- Run | Scr Mat Min Mat Min Exi Min Mat Fac Low Low Dat Pro Fac Ext Cet Arc Hub Fac Upp Upp War Pro Fac Res DSF Res Acc Robot Analysis Total 3 | . 1 . 2 . . . . . . . . . . . . . . . . . . . . . . . . Derelict Logs Recovered 13 | . . 1 . 2 . . . . 2 2 . 1 . . . . . . 2 2 . 1 . . . . . Drone Launches 8 | . . . . . . . . . . . . . . . . . . 8 . . . . . . . . . Drone Recoveries 1 | . . . . . . . . . . . . . . . . . . 1 . . . . . . . . . Exploration | -11 -10 -10 -9 -9 -9 -8 -8 -7 -7 -7 -7 -6 -6 -6 -6 -6 -6 -5 -5 -5 -5 -4 -4 -3 -3 -2 -1 ------------- Run | Scr Mat Min Mat Min Exi Min Mat Fac Low Low Dat Pro Fac Ext Cet Arc Hub Fac Upp Upp War Pro Fac Res DSF Res Acc Turns Passed 48546 | . 1725 1352 4027 2418 1436 2269 3933 6788 2712 3324 204 1415 2467 1554 595 82 1065 2060 1668 2091 1665 1370 1440 52 40 481 313 Spaces Moved 21024 | 1 877 730 1446 892 584 841 1282 2474 1032 1212 80 475 1156 755 224 45 359 836 895 1055 826 661 751 98 42 714 681 Core 937 | . . . . . . . . . . . . . . . . . . . . . . . 212 98 37 590 . Treads 17115 | . 769 730 1446 892 584 841 1282 2181 1032 1212 80 475 177 . 194 45 359 836 895 1055 826 661 539 . 4 . . Legs 110 | 1 108 . . . . . . . . . . . . . . . . . . . . . . . 1 . . Wheels 2057 | . . . . . . . . 293 . . . . 979 755 30 . . . . . . . . . . . . Hover . | . . . . . . . . . . . . . . . . . . . . . . . . . . . . Flight 805 | . . . . . . . . . . . . . . . . . . . . . . . . . . 124 681 Fastest Speed 34 | 120 120 160 160 240 240 240 160 145 240 240 247 247 160 160 160 163 163 160 162 162 166 163 50 50 50 34 34 Average Speed 190 | 120 155 160 233 240 240 240 236 228 240 241 247 247 172 160 195 163 163 164 162 162 166 187 131 50 62 51 34 Slowest Speed 560 | 120 160 160 240 240 240 240 320 240 560 247 247 247 243 160 242 163 163 240 163 480 168 247 170 50 166 250 34 Overloaded Moves . | . . . . . . . . . . . . . . . . . . . . . . . . . . . . Propulsion Burnouts . | . . . . . . . . . . . . . . . . . . . . . . . . . . . . Robots Hopped 9 | . . . . . . . . . . . . . . . . . . . . . . . . . . . 9 Cave-ins Triggered . | . . . . . . . . . . . . . . . . . . . . . . . . . . . . Exploration Rate (%) 62 | 2 97 99 99 99 68 98 79 66 97 94 68 54 37 84 58 62 27 25 86 89 84 72 22 4 43 25 19 Regions Visited 27 Branch Regions 16 Pre-discovered Areas 11 | . 2 . 2 1 . . 1 . . 1 1 . . . . . . . 1 1 1 . . . . . . Known Exits Taken 8 | . . . . 1 . . . 1 . . . . 1 . . . . 1 1 . . 1 . 1 . 1 . Unknown Exits Taken 18 | 1 1 1 1 . 1 1 1 . 1 1 1 1 . 1 1 1 1 . . 1 1 . 1 . . . . Scrap Searched 20 | . . 1 . 1 . 3 . . 2 3 . 4 . . . . . . 2 3 . 1 . . . . . Spaces Dug 215 | . 13 55 . 6 . 21 11 32 . . . . 24 . . . 7 19 17 . . . . . . 2 8 Terrain Destroyed 1174 | . 50 75 . 6 . 49 11 180 . . . . 24 . . . 31 368 108 115 43 80 24 . . 2 8 Melee 9 | . . . . . . . . . . . . . . . . . . . . . . . . . . 1 8 Projectile 313 | . . . . . . . . 1 . . . . 2 . . . 30 86 58 25 19 67 24 . . 1 . AOE 848 | . 50 75 . 6 . 49 11 179 . . . . 22 . . . . 280 49 90 24 13 . . . . . Terrain Rammed . | . . . . . . . . . . . . . . . . . . . . . . . . . . . . Walls Destroyed . | . . . . . . . . . . . . . . . . . . . . . . . . . . . . Machines Disabled . | . . . . . . . . . . . . . . . . . . . . . . . . . . . . Actions | -11 -10 -10 -9 -9 -9 -8 -8 -7 -7 -7 -7 -6 -6 -6 -6 -6 -6 -5 -5 -5 -5 -4 -4 -3 -3 -2 -1 --------- Run | Scr Mat Min Mat Min Exi Min Mat Fac Low Low Dat Pro Fac Ext Cet Arc Hub Fac Upp Upp War Pro Fac Res DSF Res Acc Total 26874 | . 1131 864 1899 1149 622 999 1978 3303 1138 1339 87 657 1509 1060 314 52 730 1260 1004 1256 1037 727 1074 100 54 809 722 Wait 3173 | . 121 79 251 210 3 104 462 492 50 25 . 105 169 137 6 7 268 187 35 85 112 7 188 . 8 41 21 Move 20978 | . 876 729 1445 891 583 840 1281 2473 1031 1211 79 474 1155 754 223 44 358 835 894 1054 825 660 750 97 41 713 662 Hop 9 | . . . . . . . . . . . . . . . . . . . . . . . . . . . 9 Pick Up 205 | . 16 7 31 7 5 . 19 21 3 2 . 6 16 1 6 . 3 15 4 11 13 4 11 1 . . 3 Fast Attach 187 | . 5 1 6 3 6 2 15 19 6 11 4 13 18 3 8 . 8 14 . 7 12 1 7 1 3 11 3 Attach 110 | . 1 6 6 3 3 . 7 8 1 1 . 2 6 . 6 . 1 12 4 5 6 8 18 . . 6 . Detach 64 | . 1 . 1 2 6 . 3 4 . 2 . 1 3 . 2 . 1 10 . 2 4 4 9 . . 8 1 Swap 221 | . 11 3 14 6 . 5 21 53 1 3 . 1 10 3 4 . 15 21 10 8 13 9 9 . 1 . . Drop 378 | . 10 4 34 13 11 3 33 43 6 15 4 17 33 6 14 . 17 27 4 14 21 4 28 1 1 12 3 Fire 1160 | . 54 31 87 8 5 39 129 171 20 16 . 32 99 32 33 1 57 134 53 45 31 26 52 . . 5 . Melee 41 | . . . . . . . . . . . . . . . 12 . . . . . . . . . . 9 20 Ram . | . . . . . . . . . . . . . . . . . . . . . . . . . . . . Kick 33 | . 33 . . . . . . . . . . . . . . . . . . . . . . . . . . Crush 187 | . 3 4 24 6 . 6 8 19 20 53 . 6 . . . . 2 5 . 25 . . 2 . . 4 . Escape Stasis . | . . . . . . . . . . . . . . . . . . . . . . . . . . . . Rewire 128 | . . . . . . . . . . . . . . 124 . . . . . . . 4 . . . . . Trap . | . . . . . . . . . . . . . . . . . . . . . . . . . . . . Miscellaneous . | . . . . . . . . . . . . . . . . . . . . . . . . . . . . Route ------- -11/Scrapyard -10/Materials (discovered 4 exits: *Mat x3 / *Min) -10/Mines (discovered 2 exits: *Mat x2) -9/Materials (discovered 4 exits: *Mat x3 / *Min) -9/Mines (discovered 3 exits: *Mat x2 / *Exi) -9/Exiles (discovered 2 exits: [*Min x2]) -8/Mines (discovered 2 exits: *Mat x2) -8/Materials (discovered 2 exits: *Fac x2) -7/Factory (discovered 5 exits: *Fac / *Sto x2 / *Low x2) -7/Lower Caves (discovered 2 exits: *Low / *Dat) -7/Lower Caves (discovered 2 exits: *Fac / *Dat) -7/Data Miner -6/Proximity Caves -6/Factory (discovered 5 exits: *Fac / *Low x2 / *Ext x2) -6/Extension (discovered 2 exits: *Fac / *Cet) -6/Cetus (discovered 2 exits: *Fac / *Arc) -6/Archives -6/Hub_04(d) -5/Factory (discovered 6 exits: *Fac x4 / *Upp x2) -5/Upper Caves -5/Upper Caves (discovered 2 exits: *Fac / *War) -5/Warlord -4/Proximity Caves -4/Factory -3/Research (discovered 2 exits: Tes / DSF) -3/DSF -2/Research -1/Access To Epsilon Eridani History --------- Turn | Location | Event 1 | -11/Scrapyard | Discovered new exit (range 0) 1 | -11/Scrapyard | Entered Materials 219 | -10/Materials | Discovered new exit (range 4) 322 | -10/Materials | Build established: Mutant 435 | -10/Materials | Central database locked down 820 | -10/Materials | Discovered new exit (range 9) 976 | -10/Materials | Discovered new exit (range 13) 1179 | -10/Materials | Repaired Lgt. Treads 1588 | -10/Materials | Discovered new exit (range 12) 1726 | -10/Materials | Entered Mines 1726 | -10/Mines | Accompanied by 1 ally 1727 | -10/Mines | Assembled infested the area 1867 | -10/Mines | Received a Rocket Launcher from a helpful Derelict 2130 | -10/Mines | Found the Drone Emporium 2136 | -10/Mines | Found Prototype Device 2432 | -10/Mines | Discovered new exit (range 15) 2449 | -10/Mines | Core integrity fell below 50% 2453 | -10/Mines | Core integrity fell below 20% 2477 | -10/Mines | Lost 6 parts (1p2n1u2w) 2587 | -10/Mines | Discovered new exit (range 15) 2607 | -10/Mines | Learned Materials emergency access door positions 3078 | -10/Mines | Entered Materials 3078 | -9/Materials | Evolved 2 slots: Utility x1, Weapon x1 3729 | -9/Materials | Build established: Tank 3873 | -9/Materials | Discovered new exit (range 15) 4366 | -9/Materials | Discovered new exit (range 16) 4880 | -9/Materials | Repaired Hvy. Assault Rifle 4913 | -9/Materials | Repaired Hvy. Assault Rifle 4946 | -9/Materials | Repaired Hvy. Assault Rifle 5277 | -9/Materials | Central database locked down 5381 | -9/Materials | Discovered new exit (range 8) 6329 | -9/Materials | Discovered new exit (range 16) 6444 | -9/Materials | Build established: Scavenger-Tank 6771 | -9/Materials | Repaired Lgt. Treads 7105 | -9/Materials | Entered Mines 7210 | -9/Mines | Met a Derelict who couldn't figure out how to use a Trap Extractor 7558 | -9/Mines | Joined a pair of Derelicts in attacking an 0b10 outpost 7650 | -9/Mines | Learned location of Storage (-7) 7748 | -9/Mines | Discovered new exit (range 10) 8318 | -9/Mines | Met a Derelict shopkeep closing up shop 8507 | -9/Mines | Found Powered Armor 8587 | -9/Mines | Deemed a non-threat by the Exiles lab entrance 8897 | -9/Mines | Identified exit to Exiles 8909 | -9/Mines | Discovered new exit (range 8) 9523 | -9/Mines | Entered Exiles 9565 | -9/Exiles | Discovered new exit (range 15) 9591 | -9/Exiles | Met 8R-AWN 9625 | -9/Exiles | Met EX-HEX 9722 | -9/Exiles | Met EX-DEC 9774 | -9/Exiles | Met EX-BIN 9821 | -9/Exiles | Build established: Mutant 9930 | -9/Exiles | Identified Bomb Drone Bay 9996 | -9/Exiles | Discovered new exit (range 15) 10638 | -9/Exiles | Aligned with FarCom system 10640 | -9/Exiles | Given EX-Vault access code 10695 | -9/Exiles | Opened EX-Vault 10718 | -9/Exiles | Found Gui. Plasma Cannon 10767 | -9/Exiles | Warned to stay clear of 0b10 Research branches 10959 | -9/Exiles | Left Exiles lab with Gui. Plasma Cannon 10959 | -9/Exiles | Entered Mines 11238 | -8/Mines | Build established: Scavenger-Skirmisher 11676 | -8/Mines | Discovered new exit (range 3) 11732 | -8/Mines | Discovered new exit (range 6) 13228 | -8/Mines | Entered Materials 13228 | -8/Materials | Evolved 2 slots: Propulsion x1, Utility x1 13534 | -8/Materials | Build established: Scavenger-Tank 13848 | -8/Materials | Build established: Tank 14873 | -8/Materials | Discovered new exit (range 16) 14976 | -8/Materials | Build established: Skirmisher 15204 | -8/Materials | Discovered new exit (range 16) 15581 | -8/Materials | Build established: Scavenger-Skirmisher 16587 | -8/Materials | Build established: Skirmisher 16801 | -8/Materials | Repaired Lgt. Treads 16828 | -8/Materials | Repaired Lgt. Treads 17116 | -8/Materials | Build established: Scavenger-Skirmisher 17161 | -8/Materials | Entered Factory 17161 | -7/Factory | Evolved 2 slots: Propulsion x1, Weapon x1 19368 | -7/Factory | Discovered new exit (range 6) 19436 | -7/Factory | Identified exit to Storage 19797 | -7/Factory | Identified exit to Lower Caves 20026 | -7/Factory | Garrison activated, responded to threat 21044 | -7/Factory | Repaired Corrupted Transmission Jammer? 21532 | -7/Factory | Allied Derelicts emerged from ambush trap array 22294 | -7/Factory | Repaired Imp. Treads 22340 | -7/Factory | Repaired Imp. Shield Generator 22361 | -7/Factory | First assault squad dispatched 22401 | -7/Factory | Repaired Enh. Autogun 22424 | -7/Factory | Garrison activated, responded to threat 23004 | -7/Factory | Discovered new exit (range 16) 23129 | -7/Factory | Build established: Skirmisher 23153 | -7/Factory | Repaired Lgt. Treads 23730 | -7/Factory | Destroyed 8 combat bots 23949 | -7/Factory | Entered Lower Caves 23973 | -7/Lower Caves | Learned Factory emergency access door positions 24015 | -7/Lower Caves | Encountered a Warlord checkpoint 24235 | -7/Lower Caves | Build established: Tank 24999 | -7/Lower Caves | Learned Factory stockpile data 25093 | -7/Lower Caves | Attracted the attention of an 0b10 checkpoint 25247 | -7/Lower Caves | A Derelict revealed a hidden shortcut to meet someone special 25408 | -7/Lower Caves | Build established: Scavenger-Tank 25890 | -7/Lower Caves | Ambushed by wild Derelicts 26421 | -7/Lower Caves | Discovered new exit (range 7) 26661 | -7/Lower Caves | Entered another Lower Caves area 26893 | -7/Lower Caves | Learned Factory terminal intel 26925 | -7/Lower Caves | Encountered a Warlord checkpoint 27542 | -7/Lower Caves | Learned Extension trap positions 27551 | -7/Lower Caves | A Commander dispatched an escort 28313 | -7/Lower Caves | Learned Factory terminal intel 28340 | -7/Lower Caves | Discovered new exit (range 16) 28387 | -7/Lower Caves | Attacked by a delusional Derelict stockpiling parts 29023 | -7/Lower Caves | Attracted the attention of an 0b10 checkpoint 29054 | -7/Lower Caves | Discovered new exit (range 8) 29985 | -7/Lower Caves | Entered Data Miner 29985 | -7/Data Miner | Discovered new exit (range 6) 30034 | -7/Data Miner | Met Data Miner 30081 | -7/Data Miner | Learned location of Section 7 (-2) 30081 | -7/Data Miner | Acquired the access code to Warlord's prototype stash 30113 | -7/Data Miner | Received God Mode back door access code from Data Miner 30189 | -7/Data Miner | Entered Proximity Caves 30331 | -6/Proximity Caves | Received a Behemoth hack from an annoying Tinkerer 30421 | -6/Proximity Caves | Escorted by Enhanced Grunt 30475 | -6/Proximity Caves | Found Prototype Device 30475 | -6/Proximity Caves | Identified Exp. Thermal Shield 30731 | -6/Proximity Caves | Learned 4 Factory zone layouts 31494 | -6/Proximity Caves | Spotted B-75 Beast 31519 | -6/Proximity Caves | Discovered new exit (range 11) 31604 | -6/Proximity Caves | Entered Factory 31604 | -6/Factory | Evolved 2 slots: Power x1, Propulsion x1 31608 | -6/Factory | Loaded intel: 27 terminal locations 31912 | -6/Factory | Build established: Scavenger-Skirmisher 32163 | -6/Factory | Discovered new exit (range 8) 32531 | -6/Factory | Identified exit to Lower Caves 32531 | -6/Factory | Identified exit to Extension 33558 | -6/Factory | Build established: Skirmisher 34071 | -6/Factory | Entered Extension 34072 | -6/Extension | Loaded intel: 14 trap records 34168 | -6/Extension | Rescued a captive Derelict 34209 | -6/Extension | Rescued A7 34730 | -6/Extension | Build established: Commander-Skirmisher 34800 | -6/Extension | Spotted B-75 Beast 34814 | -6/Extension | Allies destroyed B-75 Beast 34820 | -6/Extension | Spotted B-75 Beast 34841 | -6/Extension | Allies destroyed B-75 Beast 34902 | -6/Extension | Rescued a captive Derelict 34902 | -6/Extension | Rescued a captive Derelict 35210 | -6/Extension | Rescued a captive Derelict 35335 | -6/Extension | Rescued a captive Derelict 35372 | -6/Extension | Build established: Scavenger-Skirmisher 35401 | -6/Extension | Rescued a captive Derelict 35402 | -6/Extension | Rescued a captive Derelict 35424 | -6/Extension | Rescued a captive Derelict 35550 | -6/Extension | Discovered new exit (range 10) 35552 | -6/Extension | Discovered new exit (range 6) 35625 | -6/Extension | Entered Cetus 35625 | -6/Cetus | Accompanied by 15 allies (A7) 35630 | -6/Cetus | Acquired a Cetus Manufacturing Module code from A7 35648 | -6/Cetus | Spotted Cetus Guard 35648 | -6/Cetus | Spotted Cetus Guard 35651 | -6/Cetus | Spotted Cetus Guard 35651 | -6/Cetus | Spotted Cetus Guard 35661 | -6/Cetus | Allies destroyed Cetus Guard 35662 | -6/Cetus | Allies destroyed Cetus Guard 35677 | -6/Cetus | Allies destroyed Cetus Guard 35725 | -6/Cetus | Allies destroyed Cetus Guard 35771 | -6/Cetus | Started Cetus Manufacturing Module 35796 | -6/Cetus | Manufactured an Enhanced Grunt 35821 | -6/Cetus | Manufactured an Enhanced Grunt 35846 | -6/Cetus | Manufactured an Enhanced Grunt 35855 | -6/Cetus | Discovered new exit (range 15) 35871 | -6/Cetus | Manufactured an Enhanced Grunt 35896 | -6/Cetus | Manufactured an Enhanced Grunt 35909 | -6/Cetus | Spotted Cetus Guard 35909 | -6/Cetus | Spotted Cetus Guard 35914 | -6/Cetus | Spotted Cetus Guard 35919 | -6/Cetus | Spotted Cetus Guard 35926 | -6/Cetus | Destroyed Cetus Guard 35929 | -6/Cetus | Allies destroyed Cetus Guard 35934 | -6/Cetus | Destroyed Cetus Guard 35952 | -6/Cetus | Destroyed Cetus Guard 35965 | -6/Cetus | Discovered new exit (range 15) 35977 | -6/Cetus | Met Revision 17 36099 | -6/Cetus | Cetus Manufacturing Module disabled 36121 | -6/Cetus | Build established: Commander-Skirmisher 36185 | -6/Cetus | Destroyed A7 36186 | -6/Cetus | Extracted ID and sensor layout for unrecognized location from A7's data core 36220 | -6/Cetus | Entered Archives 36220 | -6/Archives | Accompanied by 4 allies 36242 | -6/Archives | Met Zhirov 36248 | -6/Archives | Reinforcements dispatched to Archives 36260 | -6/Archives | Read partially decrypted archive contents 36266 | -6/Archives | Discovered new exit (range 15) 36293 | -6/Archives | Reinforcements dispatched to Archives 36302 | -6/Archives | Entered Hub_04(d) 36302 | -6/Hub_04(d) | Accompanied by 4 allies 36362 | -6/Hub_04(d) | Garrison activated, responded to threat 36483 | -6/Hub_04(d) | Build established: Scavenger-Skirmisher 36622 | -6/Hub_04(d) | Disrupted transfer network 36623 | -6/Hub_04(d) | Discovered new exit (range 9) 36833 | -6/Hub_04(d) | Network Hub disabled 37286 | -6/Hub_04(d) | System corruption reached 10% 37291 | -6/Hub_04(d) | System corruption reached 30% 37352 | -6/Hub_04(d) | First assault squad dispatched 37367 | -6/Hub_04(d) | Entered Factory 37367 | -5/Factory | Evolved 2 slots: Propulsion x1, Weapon x1 37368 | -5/Factory | Loaded intel: 25 terminal locations 37758 | -5/Factory | Identified exit to Upper Caves 37758 | -5/Factory | Identified exit to Factory 37967 | -5/Factory | First assault squad dispatched 37977 | -5/Factory | Garrison activated, responded to threat 37997 | -5/Factory | Incoming assault squad redirected 38063 | -5/Factory | Destroyed 8 combat bots 38159 | -5/Factory | Destroyed B-75 Beast 38244 | -5/Factory | Garrison activated, responded to threat 38287 | -5/Factory | Destroyed 9 combat bots 38297 | -5/Factory | Incoming assault squad redirected 38572 | -5/Factory | Destroyed 8 combat bots 38789 | -5/Factory | Incoming investigation squad redirected 38821 | -5/Factory | Fabricated Railgun? 38896 | -5/Factory | Incoming assault squad redirected 39185 | -5/Factory | Incoming assault squad redirected 39186 | -5/Factory | Incoming assault squad redirected 39194 | -5/Factory | High security lockdown imminent 39274 | -5/Factory | High security lockdown engaged 39392 | -5/Factory | Destroyed 10 combat bots 39427 | -5/Factory | Entered Upper Caves 39941 | -5/Upper Caves | Build established: Scavenger-Tank 40107 | -5/Upper Caves | Spotted B-75 Beast 40251 | -5/Upper Caves | Identified exit to Upper Caves 40514 | -5/Upper Caves | Attracted the attention of an 0b10 checkpoint 41095 | -5/Upper Caves | Entered another Upper Caves area 41242 | -5/Upper Caves | Attracted the attention of an 0b10 outpost 41573 | -5/Upper Caves | Spotted B-75 Beast 41708 | -5/Upper Caves | Build established: Scavenger-Gunner 41716 | -5/Upper Caves | Attracted the attention of an 0b10 checkpoint 42105 | -5/Upper Caves | Learned Factory garrison access intel 42144 | -5/Upper Caves | Discovered exit to Factory (range 12) 42560 | -5/Upper Caves | Build established: Scavenger-Skirmisher 42750 | -5/Upper Caves | Encountered a Warlord checkpoint 42826 | -5/Upper Caves | Discovered new exit (range 9) 43186 | -5/Upper Caves | Entered Warlord 43241 | -5/Warlord | System corruption cleaned by Quarantine Array 43428 | -5/Warlord | Build established: Scavenger-Tank 43707 | -5/Warlord | Learned Armory security intel 43707 | -5/Warlord | Learned Armory trap positions 43735 | -5/Warlord | Build established: Scavenger-Skirmisher 43932 | -5/Warlord | Met Warlord 43947 | -5/Warlord | Opened Warlord's prototype stash 43948 | -5/Warlord | Warlord's base attacked by MAIN.C 43954 | -5/Warlord | Found Prototype Reactor 43954 | -5/Warlord | Identified Vortex Chain Reactor 43966 | -5/Warlord | Found Prototype Device 43966 | -5/Warlord | Identified Thermal Barrier 44099 | -5/Warlord | Found Prototype Energy Cannon 44099 | -5/Warlord | Identified Vortex Cannon 44102 | -5/Warlord | Found Vortex Cannon 44106 | -5/Warlord | Found Prototype Energy Gun 44106 | -5/Warlord | Identified Vortex Rail 44110 | -5/Warlord | Found Vortex Rail 44117 | -5/Warlord | Found Prototype Energy Gun 44117 | -5/Warlord | Identified Vortex Rifle 44298 | -5/Warlord | Warlord forces counterattacked 44319 | -5/Warlord | Spotted B-86 Titan 44333 | -5/Warlord | Spotted Executioner 44335 | -5/Warlord | Spotted Striker 44341 | -5/Warlord | Spotted B-75 Beast 44342 | -5/Warlord | Destroyed Striker 44389 | -5/Warlord | Spotted Striker 44394 | -5/Warlord | Spotted Striker 44394 | -5/Warlord | Spotted Striker 44465 | -5/Warlord | Spotted Executioner 44496 | -5/Warlord | Destroyed Executioner 44509 | -5/Warlord | Build established: Scavenger-Tank 44570 | -5/Warlord | Spotted Striker 44579 | -5/Warlord | Spotted Striker 44611 | -5/Warlord | Spotted B-75 Beast 44616 | -5/Warlord | Spotted B-86 Titan 44623 | -5/Warlord | Warlord base infiltrated, sounded retreat 44653 | -5/Warlord | Lost 4 parts (1n1u2w) 44754 | -5/Warlord | Spotted Striker 44765 | -5/Warlord | Spotted Executioner 44825 | -5/Warlord | Discovered new exit (range 8) 44851 | -5/Warlord | Entered Proximity Caves 45399 | -4/Proximity Caves | Attracted the attention of an 0b10 outpost 45465 | -4/Proximity Caves | Destroyed 14 combat bots 45472 | -4/Proximity Caves | Lost 4 parts (2n1u1w) 45529 | -4/Proximity Caves | Discovered exit to Factory (range 12) 45552 | -4/Proximity Caves | System corruption reached 10% 45712 | -4/Proximity Caves | Build established: Scavenger-Gunner 46038 | -4/Proximity Caves | Learned 12 Research zone layouts 46048 | -4/Proximity Caves | Spotted B-86 Titan 46221 | -4/Proximity Caves | Entered Factory 46221 | -4/Factory | Evolved 2 slots: Power x1, Propulsion x1 46222 | -4/Factory | Loaded intel: 4 garrison access locations 46516 | -4/Factory | Build established: Scavenger-Skirmisher 46733 | -4/Factory | Spotted B-86 Titan 47385 | -4/Factory | Incoming investigation squad redirected 47467 | -4/Factory | System corruption reached 10% 47544 | -4/Factory | Lost 12 parts (2p4n2u4w) 47551 | -4/Factory | Destroyed 7 combat bots 47659 | -4/Factory | Discovered new exit (range 5) 47661 | -4/Factory | Entered Research 47661 | -3/Research | Evolved 2 slots: Propulsion x2 47662 | -3/Research | Identified exit to Testing 47713 | -3/Research | Identified exit to DSF 47713 | -3/Research | Entered DSF 47744 | -3/DSF | Discovered new exit (range 16) 47753 | -3/DSF | Additional patrols routed to DSF 47753 | -3/DSF | Entered Research 47753 | -2/Research | Warlord forces began assault on 0b10 47753 | -2/Research | Evolved 2 slots: Propulsion x2 47789 | -2/Research | Build established: Mutant 47849 | -2/Research | Met up with Warlord 47863 | -2/Research | Research machine network offline 47942 | -2/Research | Discovered new exit (range 8) 48144 | -2/Research | Found Prototype Slashing Weapon 48144 | -2/Research | Identified Molecular Scythe 48171 | -2/Research | Spotted B-90 Cyclops 48230 | -2/Research | Identified exit to Access 48234 | -2/Research | Entered Access 48234 | -1/Access | Evolved 2 slots: Propulsion x2 48290 | -1/Access | Spotted B-99 Colossus 48408 | -1/Access | Identified exit to Surface 48518 | -1/Access | Search patrols dispatched 48547 | *** | Escaped! Last Messages --------------- 48516_ Door malfunctions. 48518_ ALERT: Heightened foreign activity detected, multiple search patrols dispatched. 48520_ Penetrated by Slug. 48522_ W-44 Eye sends out distress signal. 48523_ Penetrated by Slug. 48523_ Slug penetrates Wall. 48524_ Penetrated by Slug. 48526_ Slug penetrates Wall. 48526_ Penetrated by Slug. 48527_ Slug penetrates Wall. 48529_ Penetrated by Slug. 48529_ Adv. Transmission Jammer destroyed. 48531_ W-44 Eye sends out distress signal. 48542_ K-01 Serf cleans the Terminal. 48544_ Connecting with Terminal... >>Open(Door) Sealed Barrier opened. 48545_ The Access Shell folds into the floor. [Achievement: Hardcore] Map ----- +----------------------------------------------------+ | ?????????????????????????????????????????????????? | | ?????????????????????????????????????????????????? | | ?????????????????????????????????????????????????? | | ?????????????????????????????????????????????????? | | ?????????????????????????????????????????????????? | | ?????????????????????????????????????????????????? | | ?????????????????????????????????????????????????? | | ??????????????????????????????????????? ?????????? | | ?????????????????????????????????????? ?????????? | | ?????????????????????????????????????? #????????? | | ?????????????????????????????????????? #????????? | | ?????????????????????????????????????? #????????? | | ?????????????????????????????????????? #????????? | | ?????????????????????????????????????? #????????? | | ?????????????????????????????????????? #????????? | | ?????????????????????????????????????? #????????? | | ?????????????????????????????????????? #????????? | | ?????????????????????????????????????? #????????? | | ?????????????????????????????????????# #????????? | | ?????????????????????????????###?????# #????????? | | ????????????????????########## ####### #????????? | | ????????????????????" #????????? | | ??????????????BB????" #????????? | | ??????????????BB????" #????????? | | ????????????????????" #????????? | | ????????????????????" "@ #????????? | | ????????????????????" "" #????????? | | ????????????????????" k #????????? | | ??????????????BB????" #????????? | | ??????????????BB????" """ """ #????????? | | ????????????????????" """T"""w #????????? | | ????????????????????########## ####### #????????? | | ?????????????????????????????###?????# #????????? | | ?????????????????????????????????????# #????????? | | ?????????????????????????????????????# #????????? | | ?????????????????########????????????# #????????? | | ????????########## #????????????# #????????? | | ????????# ############## #????????? | | ????????# g #????????? | | ????????# w p #????????? | | ????????# p ##########/### #????????? | | ????????# ##### #??????? ## #????????? | | ????????# #???###+####?????? ## #????????? | | ????????# #???? ?????? ## +????????? | | ????????# #??# #???? ## #????????? | | ????????# #??# #?? * ## #????????? | | ????????# #??# #?# ## #????????? | | ????????# #??# #?# #! [ ????????? | | ????????# #??# #?############ ????????? | | ??????### #### #????????????? ????????? | +----------------------------------------------------+ Best States ------------- Heat Dissipation 85 Energy Generation 69 Energy Capacity 1100 Matter Stores 300 Matter Capacity 300 Sight Range 22 Robot Scan Range 16 Terrain Scan Range 24 Terrain Scan Density 10 ECM Strength 1 Jamming Range 16 Additional Mass Support 9 Armor Coverage 450 Resistance: KI 30 Resistance: EM 25 Weapon Cycling 20 Evasion (%) 63 Target Analysis 5 Armor Integrity Analysis 30 Recoil Reduction 7 Salvage Targeting 2 Offensive Hacking 10 Authchip Count 1 Item Schematics ----------------- Huge Storage Unit | -9/Materials | Hacked Hcp. Storage Unit | -9/Materials | Hacked Combat Drone Bay | -7/Data Miner | Free Lgt. Regenerative Plating | -7/Data Miner | Free Biomechanical Wings | -7/Data Miner | Free Gravity Neutralizer | -7/Data Miner | Free Antimatter Cannon | -7/Data Miner | Free Gyrokinetic Inverter | -7/Data Miner | Free Adv. Hacking Suite | -7/Data Miner | Free Hvy. Phase Cannon | -7/Data Miner | Free Plasma Rifle | -7/Data Miner | Free Imp. Component Analysis Suite | -7/Data Miner | Free Lance | -7/Data Miner | Free Railgun | -7/Data Miner | Free Adv. Datajack | -7/Data Miner | Free F-cell Engine | -6/Factory | Scanalyzed Robot Schematics ------------------ X-62 Marksman | -7/Data Miner | Free S-27 Virus | -7/Data Miner | Free B-48 Gladiator | -7/Data Miner | Free R-10 Processor | -7/Data Miner | Free G-50 Soldier | -7/Data Miner | Free L-41 Fighter | -7/Data Miner | Free M-22 Extractor | -7/Data Miner | Free Fabricated ------------ Railgun | x2 | -5/Factory Alien Tech Used ----------------- None Achievements -------------- Hardcore Challenges ------------ None Game ------ Seed LargeMagneticDetector Manual? 0 Play Time 04:04:20 Cumulative 719.5 hours Start 2022.05.14 @ 09:42:31 End 2022.05.14 @ 15:38:20 Sessions 1 Manual Loads 0 Difficulty Rogue Special Mode None Game No. 319 Rogue 318 Adventurer 1 Explorer 0 Win Type 0 Total 81 Types 24/9/12/3/2/1/29/1/0 Lore% 98 Gallery% 99 Achievement% 90 Wizard Run 0 Options --------- ASCII 1 Keyboard 1 Movement Numpad Keybinds 0 Fullscreen 0 Font 18/Smallcaps Map View 76x50 Tactical HUD 1 Map Filters NONE Filters NONE Steam 1 RUN: 7911bf25-50dd-40a5-bbec-6ba45a69eb97